Cogmind - Beta 10.1 @@@ ROGUE MODE // 2020.09.25 @ 15:42:31 Player: Cassie Rose Result: Self-destructed Performance ------------- Evolutions (1) 500 Regions Visited (2) 400 Robots Destroyed (35) 175 Value Destroyed (870) 870 Prototype IDs (0) 0 Alien Tech Used (0) 0 Bonus (0) 0 TOTAL SCORE: 1945 Bonus ------- None Cogmind --------- Core Integrity 212/400 Matter 300/300 Energy 100/100 System Corruption 0% Temperature Cool (0) Movement Core (1100) Ox21 Location -9/Materials Parts ------- > --- POWER (1) -------- (None) > --- PROPULSION (2) --- (None) > --- UTILITY (4) ------ High-capacity Storage Unit High-capacity Storage Unit Improved Sensor Array > --- WEAPON (2) ------- (None) > --- INVENTORY (20) --- Aluminum Leg Improved Sensor Array Improved Sensor Array Improved Terrain Scanner Seismic Analyzer Light Armor Plating High-powered Tractor Beam Peak State ------------ > --- POWER ------------ Ion Engine > --- PROPULSION ------- Improved Treads > --- UTILITY ---------- Improved Heat Sink High-capacity Storage Unit High-capacity Storage Unit Improved Sensor Array > --- WEAPON ----------- Beam Cannon Grenade Launcher > --- INVENTORY -------- Improved Sensor Array Improved Sensor Array Improved Terrain Scanner Seismic Analyzer Light Armor Plating High-powered Tractor Beam Grenade Launcher [Rating: 13] Favorites ----------- Power Ion Engine Engine Ion Engine Propulsion Improved Treads Treads Improved Treads Utility High-capacity Storage Unit Device Improved Sensor Array Storage High-capacity Storage Unit Weapon Beam Cannon Energy Gun Small Laser Energy Cannon Beam Cannon Ballistic Gun Light Assault Rifle Launcher Grenade Launcher Build | -11 -10 -9 ------- Run | Scr Mat Mat Slots Evolved 2 | . . 2 Power . | . . . Propulsion . | . . . Utility 2 | . . 2 Weapon . | . . . Parts Attached 38 | 7 26 5 Power 3 | 1 1 1 Engine 3 | 1 1 1 Core . | . . . Reactor . | . . . Propulsion 9 | 2 7 . Treads 9 | 2 7 . Leg . | . . . Wheel . | . . . Hover . | . . . Flight . | . . . Utility 7 | 2 3 2 Device 4 | 1 2 1 Storage 3 | 1 1 1 Processor . | . . . Hackware . | . . . Protection . | . . . Artifact . | . . . Weapon 19 | 2 15 2 Energy Gun 6 | 2 4 . Energy Cannon 8 | . 7 1 Ballistic Gun 1 | . 1 . Ballistic Cannon . | . . . Launcher 4 | . 3 1 Special Weapon . | . . . Impact Weapon . | . . . Slashing Weapon . | . . . Piercing Weapon . | . . . Special Melee Weapon . | . . . Unidentified Prototypes . | . . . Parts Lost 12 | . 6 6 Power 1 | . . 1 Propulsion 3 | . 2 1 Utility 1 | . . 1 Weapon 7 | . 4 3 Highest Loss Streak 4 | . 2 4 Average Slot Usage (%) 84 | . 91 66 Engine 12 | . 14 10 Treads 17 | . 23 2 Device 15 | . 14 20 Storage 16 | . 14 22 Energy Gun 3 | . 4 . Energy Cannon 13 | . 14 8 Launcher 3 | . 4 3 Naked Turns . | . . . Heaviest Build 77 | 12 44 77 Greatest Support 46 | 40 46 23 Greatest Overweight (x) 24 | . 1 24 Average Overweight (x) 1 | . . 11 Largest Inventory Capacity 20 | 6 12 20 Average Capacity 12 | 5 9 20 Most Carried 11 | 5 11 10 Average Carried 7 | 2 7 7 Final Capacity 20 | 6 12 20 Final Carried 11 | 3 11 7 Class Distribution -------------------- 73% | Mutant 26% | Hauler-Mutant Dominant Class ---------------- Mutant | -10/Materials Hauler-Mutant | -9/Materials Resources | -11 -10 -9 ----------- Run | Scr Mat Mat Matter Collected 640 | 196 364 80 Remotely . | . . . Salvage Created 1172 | 10 826 336 Parts 71 | 4 51 16 Haulers Intercepted 2 | . 2 . Recyclers Shooed 4 | . 4 . Parts Field Recycled . | . . . Retrieved Matter . | . . . Parts Self-Destructed . | . . . Prevented . | . . . Kills | -11 -10 -9 ------- Run | Scr Mat Mat Combat Hostiles Destroyed 23 | . 16 7 Guns 5 | . 5 . Cannons 12 | . 7 5 AOE 6 | . 4 2 Classes Destroyed 9 | 1 8 . Worker 2 | . 2 . Builder 1 | . 1 . Tunneler 1 | 1 . . Hauler 2 | . 2 . Recycler 3 | . 2 1 Operator 2 | . 1 1 Watcher 1 | . 1 . Swarmer 3 | . 3 . Grunt 20 | . 13 7 Best Kill Streak 5 | 1 5 4 Combat Bots Only 4 | . 3 4 Max Kills in Single Turn 5 | 1 5 1 Gunslinging . | . . . Exploded 3 | . 3 1 Melee . | . . . Uniques/NPCs Destroyed . | . . . Combat | -11 -10 -9 -------- Run | Scr Mat Mat Damage Taken 1838 | . 1162 676 Core 375 | . 187 188 Absorbed by Shields . | . . . Core Remaining (%) 62 | 100 25 . Volleys Fired 108 | 4 74 30 Largest 2 | 2 2 1 Hottest 120 | 80 120 60 Shots Fired 168 | 8 130 30 Gun 48 | 8 40 . Cannon 110 | . 84 26 Launcher 10 | . 6 4 Special . | . . . Kinetic 9 | . 9 . Thermal 149 | 8 115 26 Explosive 10 | . 6 4 Electromagnetic . | . . . Robot Hit Streak 9 | 1 9 8 Robot Miss Streak 4 | 4 3 3 Penetration Max . | . . . Secondary Targets 1 | . 1 . Max Gunslinging Chain 1 | . 1 . Shots Hit Robots 109 | 2 85 22 Core Hits 49 | 2 35 12 Critical Hits 1 | . 1 . Critical Kills 1 | . 1 . Critical Parts Destroyed . | . . . Melee Attacks . | . . . Impact . | . . . Slashing . | . . . Piercing . | . . . Sneak Attacks . | . . . Combat Hostiles . | . . . Follow-up Attacks . | . . . Damage Inflicted 2267 | 21 1701 545 Guns 339 | 21 318 . Cannons 1314 | . 980 334 Explosions 612 | . 401 211 Melee . | . . . Ramming 2 | . 2 . Kinetic 55 | . 55 . Thermal 1598 | 21 1243 334 Explosive 612 | . 401 211 Electromagnetic . | . . . Impact . | . . . Slashing . | . . . Piercing . | . . . Highest Corruption . | . . . Average Corruption . | . . . Corruption Purged . | . . . Overload Shots . | . . . Overflow Damage 51 | . 51 . Projectiles 31 | . 31 . Explosions 20 | . 20 . Melee . | . . . Knockbacks . | . . . Impact . | . . . Kinetic . | . . . Secondary . | . . . Self-Inflicted Damage 122 | . 31 91 Shots 5 | . 2 3 Rammed 1 | . 1 . Targets Rammed 1 | . 1 . Kicked . | . . . Crushed . | . . . Highest Temperature 397 | 72 397 . Average Temperature 134 | 38 138 . Received Heat Transfer 666 | . 498 168 Effects 6 | . 6 . Shutdowns 3 | . 3 . Energy Bleed 2 | . 2 . Short Circuit 1 | . 1 . Siege Activations . | . . . Robots Corrupted . | . . . Combat Hostiles . | . . . Parts Fried . | . . . Impact Corruptions . | . . . Robots Melted . | . . . Combat Hostiles . | . . . Parts Melted 3 | . 2 1 Heat Transferred 3425 | 50 2672 703 Parts Sabotaged . | . . . Parts Stolen . | . . . Parts Stripped . | . . . Power Chain Reactions . | . . . Missiles Intercepted . | . . . Alert | -11 -10 -9 ------- Run | Scr Mat Mat Peak Influence 249 | 5 249 215 Initial 5 | . 3 5 Average 94 | 1 91 118 Maximum Alert Level 1 | . 1 1 Low Security (%) 78 | 100 86 55 Level 1 21 | . 13 44 Level 2 . | . . . Level 3 . | . . . Level 4 . | . . . Level 5 . | . . . High Security . | . . . Max Security . | . . . Squads Dispatched 4 | . 3 1 Investigation 2 | . 2 . Extermination . | . . . Reinforcement 2 | . 1 1 Assault . | . . . Garrison . | . . . Intercept . | . . . Construction Impeded . | . . . Haulers Reinforced . | . . . Stealth | -11 -10 -9 --------- Run | Scr Mat Mat Distress Signals 1 | . 1 . Communications Jammed . | . . . Distress Signals . | . . . Times Spotted 52 | . 40 12 Peak Tracking Total 5 | . 5 5 Tactical Retreats 10 | . 10 . Traps | -11 -10 -9 ------- Run | Scr Mat Mat Traps Triggered 6 | . 6 . Indirectly . | . . . Trap Hack Attempts . | . . . Triggered . | . . . Disarmed . | . . . Reprogrammed . | . . . Reused . | . . . Traps Extracted . | . . . Installed . | . . . Triggered . | . . . Machines | -11 -10 -9 ---------- Run | Scr Mat Mat Machines Disabled 6 | . 3 3 Max in Single Turn 2 | . 1 2 Machines Sabotaged . | . . . Garrisons Compromised . | . . . Overloaded Fab Kills . | . . . Fab Network Shutdowns . | . . . Hacking | -11 -10 -9 --------- Run | Scr Mat Mat Machines Accessed 5 | . 5 . Terminals 5 | . 5 . Fabricators . | . . . Repair Stations . | . . . Recycling Units . | . . . Scanalyzers . | . . . Garrison Access . | . . . Total Hacks 13 | . 13 . Successful 9 | . 9 . Failed 4 | . 4 . Catastrophic 1 | . 1 . Database Lockouts . | . . . Manual 10 | . 10 . Terminals 13 | . 13 . Fabricators . | . . . Repair Stations . | . . . Recycling Units . | . . . Scanalyzers . | . . . Garrison Access . | . . . Terminal Hacks 4 | . 4 . Branch Access Points 1 | . 1 . Machine Index 1 | . 1 . Dispatch Records 1 | . 1 . Zone Layout 1 | . 1 . Fabricator Hacks . | . . . Repair Station Hacks . | . . . Recycling Unit Hacks . | . . . Scanalyzer . | . . . Garrison Access Hacks . | . . . Unauthorized Hacks 5 | . 5 . Terminals 5 | . 5 . Botnet 5 | . 5 . Fabricators . | . . . Repair Stations . | . . . Recycling Units . | . . . Scanalyzers . | . . . Garrison Access . | . . . Data Cores Recovered . | . . . Used . | . . . Hacking Detections 5 | . 5 . Full Trace Events 1 | . 1 . Feedback Events . | . . . Feedback Blocked . | . . . Robot Schematics Acquired . | . . . Robots Built . | . . . Matter . | . . . Time . | . . . Total Robot Build Rating . | . . . Part Schematics Acquired . | . . . Parts Built . | . . . Matter . | . . . Time . | . . . Total Part Build Rating . | . . . Parts Repaired . | . . . Time . | . . . Parts Recycled . | . . . Recycled Matter . | . . . Retrieved Matter . | . . . Retrieved Components . | . . . Parts Scanalyzed . | . . . Part Schematics Acquired . | . . . Parts Damaged . | . . . Bothacking | -11 -10 -9 ------------ Run | Scr Mat Mat Used RIF Installer . | . . . Robots Hacked . | . . . Non-combat . | . . . Combat . | . . . Robot Hacks Applied . | . . . Relay Couplers Released . | . . . Robots Rewired . | . . . Allies Hacked . | . . . Hacks Repelled . | . . . Allies | -11 -10 -9 -------- Run | Scr Mat Mat Total Allies . | . . . Largest Group . | . . . Highest-Rated Group . | . . . Highest-Rated Ally . | . . . Total Orders . | . . . Ally Attacks . | . . . Total Damage . | . . . Kills . | . . . Allies Corrupted . | . . . Allies Melted . | . . . Intel | -11 -10 -9 ------- Run | Scr Mat Mat Robot Analysis Total . | . . . Derelict Logs Recovered . | . . . Drone Launches . | . . . Drone Recoveries . | . . . Exploration | -11 -10 -9 ------------- Run | Scr Mat Mat Turns Passed 2166 | 97 1500 569 Spaces Moved 810 | 51 682 77 Core 43 | 11 . 32 Treads 767 | 40 682 45 Legs . | . . . Wheels . | . . . Hover . | . . . Flight . | . . . Fastest Speed 50 | 50 160 220 Average Speed 208 | 136 165 645 Slowest Speed 1250 | 160 180 1250 Overloaded Moves . | . . . Propulsion Burnouts . | . . . Robots Hopped . | . . . Cave-ins Triggered . | . . . Exploration Rate (%) 31 | 4 82 8 Regions Visited 2 Branch Regions . Pre-discovered Areas . | . . . Known Exits Taken . | . . . Unknown Exits Taken 2 | 1 1 . Scrap Searched . | . . . Spaces Dug 7 | . 7 . Terrain Destroyed 27 | . 14 13 Melee . | . . . Projectile . | . . . AOE 27 | . 14 13 Terrain Rammed . | . . . Walls Destroyed . | . . . Machines Disabled . | . . . Actions | -11 -10 -9 --------- Run | Scr Mat Mat Total 1116 | 71 926 119 Wait 115 | . 110 5 Move 808 | 50 681 77 Hop . | . . . Pick Up 31 | 10 20 1 Fast Attach 11 | . 11 . Attach 14 | 7 3 4 Detach . | . . . Swap 13 | . 12 1 Drop 15 | . 14 1 Fire 108 | 4 74 30 Melee . | . . . Ram . | . . . Kick . | . . . Crush 1 | . 1 . Escape Stasis . | . . . Rewire . | . . . Trap . | . . . Miscellaneous . | . . . Route ------- -11/Scrapyard -10/Materials (discovered 3 exits: [*Mat x2] / *Min) -9/Materials History --------- Turn | Location | Event 7 | -11/Scrapyard | Discovered new exit (range 15) 98 | -11/Scrapyard | Entered Materials 332 | -10/Materials | Build established: Mutant 369 | -10/Materials | Core integrity fell below 50% 432 | -10/Materials | Discovered new exit (range 15) 545 | -10/Materials | Identified exit to Mines 1461 | -10/Materials | Discovered new exit (range 13) 1598 | -10/Materials | Entered another Materials area 1598 | -9/Materials | Evolved 2 slots: Utility x2 1901 | -9/Materials | Build established: Hauler-Mutant 2167 | -9/Materials | Self-destructed Last Messages --------------- 01764_ Acquired 46 matter. 01764_ U-05 Engineer lays Concrete. 01772_ U-05 Engineer builds a Wall. 01777_ U-05 Engineer lays Concrete. 01788_ U-05 Engineer builds a Wall. 01806_ U-05 Engineer lays Concrete. 01876_ Acquired Aluminum Leg. 01878_ K-01 Serf collects debris. 01890_ Acquired 16 matter. 01891_ K-01 Serf collects debris. 01915_ R-06 Scavenger destroyed. 01980_ K-01 Serf collects debris. 01989_ R-06 Scavenger collects Com. Wheel. 01992_ R-06 Scavenger collects Lgt. Ion Engine. 02021_ K-01 Serf collects debris. 02129_ Ion Engine destroyed. 02143_ Beam Cannon destroyed. 02150_ Imp. Heat Sink destroyed. 02163_ S-10 Pest destroyed. 02164_ Grenade Launcher destroyed. Map ----- +----------------------------------------------------+ | ????????????????????????????????? | | ????????????????????????????????? | | ????????????????????????????????? | | ????????????????????#####???????? | | ????????????????????# #???????? | | ????????????????????# #???????? | | ????????????????????# ########? | | ?????????????####???# ## # | | ?????????????# ???# ## """ # | | ?????????????# ?## ## """ # | | ?????????????# ?## ## """ # | | ?????????????# """ # # # | | ?????????????# """ # # """ # | | ?????????????# """ +% + " " # | | ?????????????# # # "" # | | ?????????????# """ # = # # | | ?????????????# """ ## % ## " # | | ?????????????# """ ?# %## """ # | | ?????????????# ?# %##[ S" # | | ?????????????? ??# ##[ # | | ?????????????#####??# ######### | | ????????????????????# #?? ? | | ???????????????????## ##? """ # | | ???????????????????# # """ # | | ???????????????????# # """ # | | ???????????????????# @ # | | ???????????????????# # """ # | | ???????????????????# s # """ # | | ???????????????????##s g##? """ # | | ????????????????????# #?? ? | | ????????????????????#% #???""" # | | ????????????????????# #???""" # | | ????????????????????# #????""?# | | ????????????????????" #???? ??? | | ???????????????????"Y #???????? | | ????????????????????" ????????? | | ????????????????????# ????????? | | ????????????????????#? ????????? | | ????????????????????# ????????? | | ?????????????????????? ?????????? | | ????????????????????????????????? | | ????????????????????????????????? | | ????????????????????????????????? | | ????????????????????????????????? | | ????????????????????????????????? | | ????????????????????????????????? | | ????????????????????????????????? | | ????????????????????????????????? | | ????????????????????????????????? | | ????????????????????????????????? | +----------------------------------------------------+ Best States ------------- Heat Dissipation 42 Energy Generation 10 Energy Capacity 250 Matter Stores 300 Matter Capacity 300 Sight Range 16 Robot Scan Range 13 Terrain Scan Range 16 Terrain Scan Density 10 Evasion (%) 50 Recoil Reduction 2 Item Schematics ----------------- None Robot Schematics ------------------ None Fabricated ------------ Nothing Alien Tech Used ----------------- None Achievements -------------- None Challenges ------------ None Game ------ Seed DirtyShieldMegatreads Manual? 0 Play Time 00:20:55 Cumulative 90.5 hours Start 2020.09.25 @ 15:23:53 End 2020.09.25 @ 15:42:31 Sessions 1 Manual Loads 0 Difficulty Rogue Special Mode None Game No. 152 Rogue 152 Adventurer 0 Explorer 0 Win Type - Total 0 Types 0/0/0/0/0/0/0/0/0 Lore% 22 Gallery% 28 Achievement% 28 Wizard Run 0 Options --------- ASCII 0 Keyboard 0 Movement Mouse Keybinds 0 Fullscreen 2 Font 18/CogNarrow Map View 76x50 Tactical HUD 1 Map Filters NONE Filters LOW_CONTRAST(13,24,33)|BRIGHTNESS(120)|SATURATION(80) Steam 1 RUN: a751f867-9dc2-4e2e-b28f-40c8b4af8e9d